bitfinex-derivatives/quotes_BNBF0:USTF0_20250329
["timestamp","ask_amount","ask_price","bid_price","bid_amount"]
[1743246777522,2.02678676,605.37,605.05,2.223]
[1743246777724,1.21556192,605.36,605.05,2.223]
[1743246777919,0.92894733,605.37,605.05,2.223]
[1743246778227,0.92894733,605.35,605.05,2.223]
[1743246778721,0.92894733,605.34,605.05,2.223]
[1743246779627,0.92894733,605.33,605.05,2.223]
[1743246780926,1.29917032,605.72,605.05,2.223]
[1743246781227,3.32786562,605.71,605.05,2.223]
[1743246781427,3.32786562,605.7,605.05,2.223]
[1743246781721,3.32786562,605.69,605.05,2.223]
[1743246781921,3.32786562,605.68,605.05,2.223]
[1743246782121,3.32786562,605.67,605.05,2.223]
[1743246782323,3.32786562,605.66,605.05,2.223]
[1743246782525,3.32786562,605.65,605.05,2.223]
[1743246782726,3.32786562,605.64,605.05,2.223]
[1743246782926,3.32786562,605.63,605.05,2.223]
[1743246783123,3.32786562,605.62,605.05,2.223]
[1743246783325,3.32786562,605.61,605.05,2.223]
[1743246783524,3.32786562,605.6,605.05,2.223]
[1743246783722,3.32786562,605.59,605.05,2.223]
[1743246783926,3.32786562,605.58,605.05,2.223]
[1743246784124,3.32786562,605.57,605.05,2.223]
[1743246784429,3.32976662,605.56,605.05,2.223]
[1743246784626,3.32976662,605.55,605.05,2.223]
[1743246784925,3.32976662,605.54,605.05,2.223]
[1743246785127,3.32976662,605.53,605.05,2.223]
[1743246785325,3.32976662,605.52,605.05,2.223]
[1743246785526,3.32976662,605.51,605.05,2.223]
[1743246785820,3.32976662,605.5,605.05,2.223]
[1743246786023,4.26197345,605.49,605.05,2.223]
[1743246786224,3.32976662,605.48,605.05,2.223]
[1743246786421,3.32976662,605.47,605.05,2.223]
[1743246786628,3.32976662,605.46,605.05,2.223]
[1743246786825,3.32976662,605.45,605.05,2.223]
[1743246787026,3.32976662,605.44,605.05,2.223]
[1743246787223,3.32976662,605.43,605.05,2.223]
[1743246787426,0.93220683,605.44,605.05,2.223]
[1743246787427,3.32976662,605.42,605.05,2.223]
[1743246787627,3.32976662,605.41,605.05,2.223]
[1743246787828,3.32976662,605.4,605.05,2.223]
[1743246788030,2.02942356,605.39,605.05,2.223]
[1743246788225,2.02942356,605.38,605.05,2.223]
[1743246788426,2.02942356,605.37,605.05,2.223]
[1743246788626,2.03156914,605.36,605.05,2.223]
[1743246788928,2.03156914,605.35,605.05,2.223]
[1743246789128,2.03156914,605.34,605.05,2.223]
[1743246789324,2.03156914,605.33,605.05,2.223]
[1743246789529,2.03156914,605.32,605.05,2.223]
[1743246789730,1.21885473,605.31,605.05,2.223]
[1743246789928,0.93220683,605.33,605.05,2.223]
[1743246790123,1.2189663,605.32,605.05,2.223]
[1743246790331,0.93220683,605.33,605.05,2.223]
[1743246790530,0.93220683,605.31,605.05,2.223]
[1743246791023,0.93220683,605.3,605.05,2.223]
[1743246791425,0.93220683,605.3,605.06,0.27093032]
[1743246791629,0.93220683,605.29,605.06,0.27093032]
[1743246792031,0.93220683,605.29,605.07,0.27093032]
[1743246792231,0.98203236,605.59,605.06,0.27093032]
[1743246792533,0.98203236,605.57,605.07,0.27093032]
[1743246792831,3.33488489,605.56,605.08,0.27093032]
[1743246793031,0.32982074,606.39,605.05,0.986]
[1743246793032,3.33488489,605.55,605.05,0.986]
[1743246793232,3.33488489,605.54,605.05,0.986]
[1743246793432,3.33488489,605.53,605.05,0.986]
[1743246793626,4.26871934,605.52,605.05,0.986]
[1743246793832,3.33488489,605.51,605.05,0.986]
[1743246794132,3.33488489,605.5,605.1,1.23078804]
[1743246794332,3.33488489,605.49,605.1,1.23078804]
[1743246794531,3.33488489,605.48,605.1,1.23078804]
[1743246794735,4.26871934,605.47,605.1,1.23078804]
[1743246794934,3.33488489,605.46,605.11,1.085]
[1743246795235,4.26871934,605.45,605.11,1.085]
[1743246795435,3.33488489,605.44,605.11,1.085]
[1743246795735,4.26871934,605.43,605.12,0.27093817]
[1743246796033,3.33488489,605.42,605.12,0.27093817]
[1743246796234,3.33488489,605.41,605.12,0.27093817]
[1743246796429,2.52109843,605.4,605.12,0.27093817]
[1743246796736,3.33476873,605.39,605.12,0.27093817]
[1743246796927,3.33476873,605.38,605.12,0.27093817]
[1743246797128,3.33476873,605.37,605.12,0.27093817]
[1743246797332,3.33476873,605.36,605.12,0.27093817]
[1743246797530,2.03289625,605.35,605.12,0.27093817]
[1743246797734,2.9667307,605.34,605.12,0.27093817]
[1743246798034,2.03289625,605.33,605.12,0.27093817]
[1743246798235,2.9667307,605.32,605.12,0.27093817]
[1743246798436,2.03289625,605.31,605.12,0.27093817]
[1743246798736,2.9667307,605.3,605.18,1.23078804]
[1743246798929,1.21922595,605.29,605.18,1.23078804]
[1743246799234,0.93383445,605.29,605.18,1.23078804]
[1743246799734,0.93383445,605.28,605.18,1.23078804]
[1743246800137,0.93383445,605.27,605.18,1.23078804]
[1743246800529,0.93383445,605.26,605.18,1.23078804]
[1743246801136,0.93383445,605.26,605.11,1.085]
[1743246801137,0.9831827,605.51,605.16,1.23078804]
[1743246801335,3.33430933,605.5,605.16,1.23078804]
[1743246801537,3.33430933,605.49,605.16,1.23078804]
[1743246801736,3.33430933,605.48,605.16,1.23078804]
[1743246802036,4.26799381,605.47,605.16,1.23078804]
[1743246802235,3.33430933,605.46,605.16,1.23078804]
[1743246802535,3.33430933,605.45,605.16,1.23078804]
[1743246802736,3.33430933,605.44,605.16,1.23078804]
[1743246802941,4.26799381,605.43,605.18,1.23078804]
[1743246803137,3.33430933,605.42,605.18,1.23078804]
[1743246803338,3.33430933,605.41,605.18,1.23078804]
[1743246803540,3.33430933,605.4,605.18,1.23078804]
[1743246803740,3.33430933,605.39,605.18,1.23078804]
[1743246803935,3.33430933,605.38,605.18,1.23078804]
[1743246804138,3.33430933,605.37,605.18,1.23078804]
[1743246804338,3.33430933,605.36,605.18,1.23078804]
[1743246804535,2.03261545,605.35,605.18,1.23078804]
[1743246804735,2.03261545,605.34,605.18,1.23078804]
[1743246804939,2.03261545,605.33,605.18,1.23078804]
[1743246805137,2.96629993,605.32,605.18,1.23078804]
[1743246805341,2.03261545,605.31,605.18,1.23078804]
[1743246805536,2.96629993,605.3,605.11,2.31578804]
[1743246805742,0.93368448,605.3,605.12,0.27093833]
[1743246806138,2.152753,605.29,605.12,0.27093833]
[1743246806340,0.93368448,605.29,605.12,0.27093833]
[1743246806541,0.93368448,605.29,605.11,2.31578804]
[1743246806740,0.93368448,605.28,605.11,2.31578804]
[1743246807342,2.15300819,605.27,605.11,2.31578804]
[1743246807544,2.96674815,605.26,605.11,2.31578804]
[1743246807746,0.93368448,605.26,605.11,2.31578804]
[1743246808044,0.93368448,605.26,605.14,1.23078804]
[1743246808239,2.15325584,605.25,605.14,1.23078804]
[1743246808437,2.0334288,605.24,605.14,1.23078804]
[1743246808638,0.93368448,605.25,605.14,1.23078804]
[1743246808839,2.03343958,605.24,605.14,1.23078804]
[1743246809038,2.15323284,605.23,605.14,1.23078804]
[1743246809345,2.03387018,605.22,605.14,1.23078804]
[1743246809542,2.03387018,605.21,605.14,1.23078804]
[1743246809743,2.03387018,605.2,605.14,1.23078804]
[1743246810044,2.03387018,605.19,605.14,1.23078804]
[1743246810246,2.03387018,605.18,605.11,1.085]
[1743246810442,2.03387018,605.17,605.11,1.085]
[1743246810643,2.03387018,605.16,605.11,1.085]
[1743246810840,2.03387018,605.15,605.11,1.085]
[1743246811045,2.03387018,605.14,605.08,0.839]
[1743246811246,1.21981997,605.13,605.08,0.839]
[1743246811442,0.93368448,605.13,605.08,0.839]
[1743246812147,0.9831827,605.41,605.08,0.839]
[1743246812148,0.93368448,605.12,605.08,0.839]
[1743246812543,0.93368448,605.11,605.08,0.839]
[1743246813043,0.93368448,605.1,605.08,0.839]
[1743246813247,0.9831827,605.41,605.08,0.839]
[1743246813443,3.33500352,605.4,605.08,0.839]
[1743246813649,4.26891677,605.39,605.08,0.839]
[1743246813848,3.33500352,605.38,605.08,0.839]
[1743246814043,3.33500352,605.37,605.08,0.839]
[1743246814243,4.26891677,605.36,605.08,0.839]
[1743246814446,3.33500352,605.35,605.08,0.839]
[1743246814643,0.93391325,605.36,605.08,0.839]
[1743246814644,3.33500352,605.34,605.09,0.936]
[1743246814849,4.26891677,605.33,605.09,0.936]
[1743246815147,3.33500352,605.32,605.09,0.936]
[1743246815349,4.26891677,605.31,605.09,0.936]
[1743246815545,3.33500352,605.3,605.09,0.936]
[1743246815757,3.33500352,605.29,605.09,0.936]
[1743246815952,3.33500352,605.28,605.09,0.936]
[1743246816151,4.26891677,605.27,605.09,0.936]
[1743246816346,3.33500352,605.26,605.09,0.936]
[1743246816548,3.33500352,605.25,605.09,0.936]
[1743246816755,2.03302802,605.24,605.09,0.936]
[1743246816957,2.03302802,605.23,605.09,0.936]
[1743246817154,0.93391325,605.23,605.1,0.27098048]
[1743246817859,0.9831827,605.48,605.1,0.27098048]
[1743246818059,3.33625184,605.47,605.09,0.936]
[1743246818256,4.27045108,605.46,605.09,0.936]
[1743246818461,3.33625184,605.45,605.09,0.936]
[1743246818658,3.33633434,605.44,605.09,0.936]
[1743246818859,3.33633434,605.43,605.09,0.936]
[1743246819058,3.33633434,605.42,605.09,0.936]
[1743246819255,4.27053358,605.41,605.09,0.936]
[1743246819457,3.33633434,605.4,605.09,0.936]
[1743246819657,3.33633434,605.39,605.09,0.936]
[1743246819858,3.33633434,605.38,605.09,0.936]
[1743246820058,2.03388135,605.37,605.1,0.27092272]
[1743246820355,2.03388135,605.36,605.1,0.27092272]
[1743246820553,2.03415957,605.35,605.1,0.27092272]
[1743246820759,2.03415957,605.34,605.1,0.27092272]
[1743246820957,0.93448771,605.34,605.1,0.27092272]
[1743246821761,0.93448771,605.33,605.1,0.27092272]
[1743246822157,0.93448771,605.33,605.13,1.23078804]
[1743246822463,0.93448771,605.33,605.14,0.27092272]
[1743246822662,0.93448771,605.32,605.14,0.27092272]
[1743246823163,0.9831827,605.57,605.13,1.23078804]
[1743246823460,3.33698464,605.56,605.14,0.27090983]
[1743246823759,3.33698464,605.55,605.14,0.27090983]
[1743246823963,3.33698464,605.54,605.14,0.27090983]
[1743246824164,3.33698464,605.53,605.14,0.27090983]
[1743246824364,4.27140468,605.52,605.16,1.23078804]
[1743246824568,3.33698464,605.51,605.17,0.27090983]
[1743246824765,3.33698464,605.5,605.17,0.27090983]
[1743246824966,4.27140468,605.49,605.17,0.27090983]
[1743246825165,3.33698464,605.48,605.17,0.27090983]
[1743246825362,4.27140468,605.47,605.17,0.27090983]
[1743246825565,3.33698464,605.46,605.17,0.27090983]
[1743246825760,3.33698464,605.45,605.17,0.27090983]
[1743246825959,3.33698464,605.44,605.17,0.27090983]
[1743246826162,3.33698464,605.43,605.17,0.27090983]
[1743246826365,4.27140468,605.42,605.17,0.27090983]
[1743246826565,3.33698464,605.41,605.18,0.27090983]
[1743246826863,2.96867139,605.4,605.19,0.27090983]
[1743246827068,2.03425135,605.39,605.2,0.27090983]
[1743246827269,2.96867139,605.38,605.14,0.27090983]
[1743246827470,2.03425135,605.37,605.15,0.27090983]
[1743246827662,1.22004305,605.36,605.14,0.27090983]
[1743246827862,2.03407143,605.35,605.14,0.27090983]
[1743246828165,2.96849147,605.34,605.14,0.27090983]
[1743246828365,2.96849147,605.33,605.14,0.27090983]
[1743246828569,2.03407143,605.32,605.14,0.27090983]
[1743246828772,1.22004305,605.31,605.14,0.27090983]
[1743246829069,0.93442004,605.3,605.14,0.27090983]
[1743246829466,0.93442004,605.29,605.13,1.23078804]
[1743246830166,0.98361058,605.62,605.13,1.23078804]
[1743246830366,4.3198987,605.61,605.13,1.23078804]
[1743246830569,4.27056603,605.6,605.13,1.23078804]
[1743246830866,3.33632238,605.59,605.13,1.23078804]
[1743246831070,3.33632238,605.58,605.13,1.23078804]
[1743246831264,4.27056603,605.57,605.13,1.23078804]
[1743246831464,3.33632238,605.56,605.09,0.936]
[1743246831669,3.33632238,605.55,605.09,0.936]
[1743246831870,3.33632238,605.54,605.1,0.27092851]
[1743246832171,3.33632238,605.53,605.1,0.27092851]
[1743246832369,3.33632238,605.52,605.1,0.27092851]
[1743246832671,3.33632238,605.51,605.1,0.27092851]
[1743246832866,3.33653993,605.5,605.1,0.27092851]
[1743246833068,0.93424365,605.52,605.1,0.27092851]
[1743246833069,3.33653993,605.49,605.1,0.27092851]
[1743246833267,3.33653993,605.48,605.09,0.936]
[1743246833468,3.33653993,605.47,605.09,0.936]
[1743246833670,3.33653993,605.46,605.1,0.27091963]
[1743246833869,3.33653993,605.45,605.1,0.27091963]
[1743246834072,3.33653993,605.44,605.1,0.27091963]
[1743246834272,3.33653993,605.43,605.1,0.27091963]
[1743246834474,3.33653993,605.42,605.1,0.27091963]
[1743246834773,3.33653993,605.41,605.1,0.27091963]
[1743246834973,3.33645873,605.4,605.1,0.27091963]
[1743246835169,2.03397911,605.39,605.1,0.27091963]
[1743246835473,0.93424365,605.39,605.09,0.936]
[1743246835874,0.9838205,605.86,605.09,0.936]
[1743246836075,0.9838205,605.82,605.1,0.27084871]
[1743246836375,0.9838205,605.79,605.1,0.27084871]
[1743246836573,4.27146363,605.78,605.1,0.27084871]
[1743246836875,3.33619691,605.77,605.1,0.27084871]
[1743246837076,4.31975329,605.76,605.1,0.27084871]
[1743246837277,4.27060057,605.75,605.1,0.27084871]
[1743246837473,3.33619691,605.74,605.1,0.27084871]
[1743246837674,3.33619691,605.73,605.1,0.27084871]
[1743246837871,3.33619691,605.72,605.1,0.27084871]
[1743246838176,0.93440366,605.74,605.1,0.27084871]
[1743246838177,3.33619691,605.71,605.1,0.27084871]
[1743246838376,3.33619691,605.7,605.1,0.27084871]
[1743246838579,3.33619691,605.69,605.21,1.23078804]
[1743246838877,3.33619691,605.68,605.21,1.23078804]
[1743246839176,0.32982074,606.39,605.22,0.27082275]
[1743246839177,4.27060057,605.67,605.22,0.27082275]
[1743246839378,3.33619691,605.66,605.22,0.27082275]
[1743246839576,3.33619691,605.65,605.22,0.27082275]
[1743246839774,3.33619691,605.64,605.22,0.27082275]
[1743246840076,4.27060057,605.63,605.22,0.27082275]
[1743246840276,2.03378446,605.62,605.22,0.27082275]
[1743246840477,0.93440366,605.63,605.22,0.27082275]
[1743246840478,2.03378446,605.61,605.22,0.27082275]
[1743246840676,2.03378446,605.6,605.18,0.27082275]
[1743246840878,2.03378446,605.59,605.18,0.27082275]
[1743246841173,2.03378446,605.58,605.18,0.27082275]
[1743246841373,2.03378446,605.57,605.18,0.27082275]
[1743246841572,1.21977668,605.56,605.18,0.27082275]
[1743246841776,0.93440366,605.56,605.18,0.27082275]
[1743246842179,0.93440366,605.55,605.18,0.27082275]
[1743246842580,0.93440366,605.55,605.1,1.23078804]
[1743246842779,0.93440366,605.55,605.11,0.27083416]
[1743246843079,0.93440366,605.54,605.12,0.28742871]
[1743246843281,0.93440366,605.54,605.13,0.27083416]
[1743246843673,2.15249136,605.53,605.13,0.27083416]
[1743246843974,0.93440366,605.53,605.13,0.27083416]
[1743246844178,0.93440366,605.52,605.13,0.27083416]
[1743246844683,0.93440366,605.51,605.13,0.27083416]
[1743246844877,0.93440366,605.51,605.12,0.28744177]
[1743246845078,0.93440366,605.51,605.13,0.27083416]
[1743246845483,0.93440366,605.5,605.12,0.28744177]
[1743246845883,0.93440366,605.49,605.12,0.28744177]
[1743246846084,0.93440366,605.49,605.13,0.27084469]
[1743246846585,0.98246138,605.9,605.13,0.27084469]
[1743246846785,3.33059811,605.89,605.13,0.27084469]
[1743246846982,4.26319904,605.88,605.13,0.27084469]
[1743246847179,3.33059811,605.87,605.13,0.27084469]
[1743246847485,4.26319904,605.86,605.13,0.27084469]
[1743246847779,3.33059811,605.85,605.13,0.27084469]
[1743246847984,3.33059811,605.84,605.09,0.27084469]
[1743246848185,3.33059811,605.83,605.1,0.27084469]
[1743246848378,3.33059811,605.82,605.09,0.27084469]
[1743246848583,3.33059811,605.81,605.09,0.27084469]
[1743246848781,4.26319904,605.8,605.09,0.27084469]
[1743246848983,3.33059811,605.79,605.1,0.28738124]
[1743246849183,3.33059811,605.78,605.11,0.27084469]
[1743246849385,3.33059811,605.77,605.11,0.27084469]
[1743246849586,3.33059811,605.76,605.11,0.27084469]
[1743246849784,3.33059811,605.75,605.11,0.27084469]
[1743246849979,0.93260093,605.76,605.11,0.27084469]
[1743246849980,3.33059811,605.74,605.12,1.245]
[1743246850184,3.33059811,605.73,605.13,0.27084469]
[1743246850384,3.33059811,605.72,605.13,0.27084469]
[1743246850587,3.33059811,605.71,605.13,0.27084469]
[1743246850784,2.03036993,605.7,605.12,1.245]
[1743246850981,2.03036993,605.69,605.13,0.270809]
[1743246851180,2.03036993,605.68,605.13,0.270809]
[1743246851381,2.96297086,605.67,605.13,0.270809]
[1743246851683,0.93260093,605.67,605.13,0.270809]
[1743246851889,0.98246138,605.99,605.16,1.23078804]
[1743246852086,3.32847788,605.98,605.17,0.270809]
[1743246852286,3.32847788,605.97,605.17,0.270809]
[1743246852483,3.32847788,605.96,605.17,0.270809]
[1743246852684,3.32847788,605.95,605.17,0.270809]
[1743246852890,3.32847788,605.94,605.17,0.270809]
[1743246853188,4.26013956,605.93,605.17,0.270809]
[1743246853388,3.32847788,605.92,605.17,0.270809]
[1743246853584,3.32847788,605.91,605.17,0.270809]
[1743246853889,3.32847788,605.9,605.17,0.270809]
[1743246854092,3.32847788,605.89,605.17,0.270809]
[1743246854292,3.32847788,605.88,605.24,1.23078804]
[1743246854490,3.32622457,605.87,605.25,0.270809]
[1743246854791,3.32622457,605.86,605.25,0.270809]
[1743246854988,3.32622457,605.85,605.25,0.270809]
[1743246855189,3.32622457,605.84,605.25,0.270809]
[1743246855385,3.32622457,605.83,605.25,0.270809]
[1743246855588,2.02771412,605.82,605.26,0.27076685]
[1743246855789,2.02771412,605.81,605.27,0.27076685]
[1743246856092,2.02771412,605.8,605.28,0.27076685]
[1743246856390,2.02771412,605.79,605.29,0.27076685]
[1743246856589,2.95903883,605.78,605.25,0.27076685]
[1743246856784,2.95903883,605.78,605.26,0.27076685]
[1743246856785,2.02737715,605.77,605.26,0.27076685]
[1743246857085,2.95903883,605.76,605.25,0.27076685]
[1743246857290,1.21614509,605.75,605.26,0.27076685]
[1743246857486,0.93166168,605.76,605.25,0.27076685]
[1743246857693,0.93166168,605.75,605.25,0.27076685]
[1743246858091,0.93166168,605.75,605.26,0.27076685]
[1743246858289,0.93166168,605.74,605.23,0.27076685]
[1743246858691,0.93166168,605.73,605.23,0.27076685]
[1743246859294,1.29758445,606.03,605.23,0.27076685]
[1743246859489,3.32345939,606.02,605.23,0.27076685]
[1743246859695,3.32345939,606.01,605.23,0.27076685]
[1743246859895,3.32345939,606.01,605.17,1.23078804]
[1743246859896,3.32345939,606.0,605.22,0.28732904]
[1743246860091,3.32345939,605.99,605.23,0.27076685]
[1743246860290,3.32345939,605.98,605.23,0.27076685]
[1743246860597,4.2534596,605.97,605.23,0.27076685]
[1743246860792,3.322975,605.96,605.23,0.27076685]
[1743246860997,3.322975,605.95,605.23,0.27076685]
[1743246861192,3.322975,605.94,605.23,0.27076685]
[1743246861394,3.322975,605.93,605.24,1.314]
[1743246861593,3.322975,605.92,605.25,0.27076685]
[1743246861791,3.322975,605.91,605.25,0.27076685]
[1743246861993,3.322975,605.9,605.25,0.27076685]
[1743246862197,3.322975,605.89,605.24,1.314]
[1743246862396,3.322975,605.88,605.24,1.314]
[1743246862595,3.322975,605.87,605.24,1.314]
[1743246862797,4.2534596,605.86,605.24,1.314]
[1743246862994,2.02578578,605.85,605.24,1.314]
[1743246863192,2.02578578,605.84,605.24,1.314]
[1743246863397,2.02578578,605.83,605.24,1.314]
[1743246863596,2.02578578,605.82,605.24,1.314]
[1743246863798,0.9304846,605.85,605.24,1.314]
[1743246863996,0.9304846,605.81,605.24,1.314]
[1743246864197,0.9304846,605.8,605.24,1.314]
[1743246864899,0.9304846,605.79,605.24,1.314]
[1743246865198,0.9304846,605.79,605.26,0.27076481]
[1743246865400,0.9304846,605.79,605.25,0.27076481]
[1743246865592,0.9304846,605.79,605.26,0.27076481]
[1743246865798,0.9304846,605.78,605.25,0.27076481]
[1743246866598,0.9304846,605.77,605.25,0.27076481]
[1743246866795,0.9304846,605.77,605.26,1.337]
[1743246866991,0.9304846,605.77,605.27,0.27076481]
[1743246867196,0.9304846,605.76,605.27,0.27076481]
[1743246867597,1.2961664,606.05,605.27,0.27076481]
[1743246867791,3.32012347,606.04,605.27,0.27076481]
[1743246867998,3.32012347,606.03,605.27,0.27076481]
[1743246868194,3.32012347,606.02,605.27,0.27076481]
[1743246868394,3.32012347,606.01,605.27,0.27076481]
[1743246868593,3.31978313,606.0,605.27,0.27076481]
[1743246868897,4.24937056,605.99,605.27,0.27076481]
[1743246869096,3.31978313,605.98,605.27,0.27076481]
[1743246869291,3.31978313,605.97,605.27,0.27076481]
[1743246869495,4.24937056,605.96,605.27,0.27076481]
[1743246869696,3.31978313,605.95,605.26,1.337]
[1743246869897,3.31978313,605.94,605.27,0.27075407]
[1743246870095,3.31978313,605.93,605.27,0.27075407]
[1743246870297,3.31978313,605.92,605.27,0.27075407]
[1743246870498,3.31978313,605.91,605.27,0.27075407]
[1743246870699,3.32026623,605.9,605.27,0.27075407]
[1743246870899,3.32026623,605.89,605.27,0.27075407]
[1743246871101,4.24985366,605.88,605.27,0.27075407]
[1743246871300,3.32026623,605.87,605.27,0.27075407]
[1743246871499,2.02408579,605.86,605.26,2.56778804]
[1743246871700,2.02408579,605.85,605.27,0.27075127]
[1743246871895,2.02408579,605.84,605.27,0.27075127]
[1743246872200,2.02408579,605.83,605.33,1.23078804]
[1743246872499,2.95367322,605.82,605.34,0.27075127]
[1743246872701,2.02408579,605.81,605.34,0.27075127]
[1743246873002,0.97882513,606.1,605.34,0.27075127]
[1743246873003,0.92958743,605.8,605.34,0.27075127]
[1743246873600,0.92958743,605.79,605.34,0.27075127]
[1743246874197,0.92958743,605.78,605.34,0.27075127]
[1743246874597,0.32982074,606.39,605.34,0.27075127]
[1743246874598,0.97976188,606.08,605.34,0.27075127]
[1743246874801,3.32346133,606.07,605.34,0.27075127]
[1743246875000,3.32346133,606.06,605.36,1.23078804]
[1743246875199,3.32346133,606.05,605.37,0.27075127]
[1743246875396,3.32346133,606.04,605.37,0.27075127]
[1743246875601,3.32346133,606.03,605.37,0.27075127]
[1743246875802,3.32346133,606.02,605.37,0.27075127]
[1743246876004,3.32346133,606.01,605.37,0.27075127]
[1743246876201,3.32346133,606.0,605.37,0.27075127]
[1743246876403,3.32346133,605.99,605.37,0.27075127]
[1743246876598,0.93069742,606.03,605.37,0.27075127]
[1743246876803,0.93069742,605.99,605.36,1.23078804]
[1743246877101,3.32476848,605.98,605.37,0.27073853]
[1743246877304,3.32476848,605.97,605.37,0.27073853]
[1743246877505,0.98014711,606.07,605.37,0.27073853]
[1743246877506,3.32476848,605.96,605.41,1.23078804]
[1743246877705,3.32476848,605.95,605.42,0.27073853]
[1743246878006,4.2554659,605.94,605.42,0.27073853]
[1743246878305,3.32476848,605.93,605.42,0.27073853]
[1743246878506,0.93069742,605.94,605.42,0.27073853]
[1743246878507,3.32476848,605.92,605.42,0.27073853]
[1743246878699,3.3252942,605.91,605.42,0.27073853]
[1743246878904,3.3252942,605.9,605.42,0.27073853]
[1743246879204,3.3252942,605.89,605.42,0.27073853]
[1743246879507,2.02735812,605.88,605.42,0.27073853]
[1743246879705,2.02735812,605.87,605.43,0.27073853]
[1743246879905,2.02735812,605.86,605.37,0.27073853]
[1743246880099,2.02735812,605.85,605.38,0.27073853]
[1743246880302,2.02735812,605.84,605.37,0.27073853]
[1743246880499,2.02735812,605.83,605.38,0.27073853]
[1743246880703,2.02735812,605.82,605.39,0.27073853]
[1743246880901,1.21614807,605.81,605.37,0.27073853]
[1743246881101,0.93069742,605.85,605.38,0.27073853]
[1743246881304,0.93069742,605.8,605.39,1.23078804]
[1743246881504,0.93069742,605.8,605.4,0.27073853]
[1743246882009,1.29917455,606.11,605.4,0.27073853]
[1743246882204,3.32809484,606.1,605.4,0.27073853]
[1743246882403,3.32809484,606.09,605.4,0.27073853]
[1743246882603,3.32809484,606.08,605.4,0.27073853]
[1743246882804,3.32809484,606.07,605.4,0.27073853]
[1743246883005,3.32809484,606.06,605.4,0.27073853]
[1743246883211,3.32809484,606.05,605.4,0.27073853]
[1743246883410,4.25984258,606.04,605.4,0.27073853]
[1743246883611,3.32809484,606.03,605.45,1.23078804]
[1743246883810,3.32809484,606.02,605.45,1.23078804]
[1743246884008,3.32809484,606.01,605.46,0.27073853]
[1743246884210,3.32809484,606.0,605.46,0.27073853]
[1743246884409,3.32809484,605.99,605.45,1.23078804]
[1743246884609,3.32809484,605.98,605.45,1.23078804]
[1743246884810,2.02880358,605.97,605.45,1.23078804]
[1743246885010,2.02880358,605.96,605.45,1.23078804]
[1743246885212,2.02880358,605.95,605.45,1.23078804]
[1743246885407,2.02880358,605.94,605.45,1.23078804]
[1743246885710,2.02880358,605.93,605.45,1.23078804]
[1743246885907,2.02880358,605.92,605.43,1.23078804]
[1743246886112,2.02880358,605.91,605.43,1.23078804]
[1743246886310,2.02880358,605.9,605.43,1.23078804]
[1743246886510,2.02880358,605.89,605.43,1.23078804]
[1743246886811,1.21688142,605.88,605.43,1.23078804]
[1743246887011,0.93174774,605.9,605.43,1.23078804]
[1743246887206,2.02882406,605.89,605.43,1.23078804]
[1743246887407,1.21682325,605.88,605.43,1.23078804]
[1743246887608,0.93174774,605.89,605.43,1.23078804]
[1743246887805,0.93174774,605.87,605.43,1.23078804]
[1743246888207,0.93174774,605.86,605.43,1.23078804]
[1743246888412,0.93174774,605.86,605.42,1.23078804]
[1743246888809,1.29947752,606.22,605.42,1.23078804]
[1743246888810,0.93174774,605.85,605.42,1.23078804]
[1743246889609,0.93174774,605.84,605.42,1.23078804]
[1743246890013,0.93174774,605.84,605.4,1.261]
[1743246890213,1.29947752,606.15,605.4,1.261]
[1743246890214,1.29947752,606.14,605.4,1.261]
[1743246890411,3.32877292,606.13,605.4,1.261]
[1743246890612,3.32877292,606.12,605.4,1.261]
[1743246890815,3.32877292,606.11,605.4,1.261]
[1743246891014,3.32877292,606.1,605.4,1.261]
[1743246891314,3.32877292,606.09,605.4,1.261]
[1743246891513,4.26077679,606.08,605.4,1.261]
[1743246891713,3.32877292,606.07,605.41,0.27069581]
[1743246892014,3.32877292,606.06,605.41,0.27069581]
[1743246892213,3.32877292,606.05,605.41,0.27069581]
[1743246892415,3.32877292,606.04,605.41,0.27069581]
[1743246892614,4.26077679,606.03,605.41,0.27069581]
[1743246892810,3.33028637,606.02,605.41,0.27069581]
[1743246893013,3.33028637,606.01,605.41,0.27069581]
[1743246893210,3.33028637,606.0,605.41,0.27069581]
[1743246893515,3.33028637,605.99,605.41,0.27069581]
[1743246893709,3.33028637,605.98,605.41,0.27069581]
[1743246893916,0.98175545,606.21,605.41,0.27069581]
[1743246893917,3.33028637,605.97,605.41,0.27069581]
[1743246894111,3.33028637,605.96,605.41,0.27069581]
[1743246894316,3.33028637,605.95,605.41,0.27069581]
[1743246894617,2.030203,605.94,605.42,0.27067125]
[1743246894917,2.03083993,605.93,605.43,0.27067125]